bitfinex-derivatives/quotes_ETHF0:USTF0_20250428
["timestamp","ask_amount","ask_price","bid_price","bid_amount"]
[1745871350417,2.85415,1788.7,1788.5,10.5958]
[1745871350618,3.72165,1788.7,1788.5,11.71372]
[1745871350817,2.77821,1788.6,1788.5,3.802]
[1745871351315,1.11797,1788.5,1788.4,0.9566]
[1745871351513,2.77827,1788.5,1788.4,0.9566]
[1745871351721,2.77827,1788.5,1788.3,3.74678]
[1745871351913,1.6603,1788.4,1788.3,3.74678]
[1745871352215,1.6603,1788.4,1788.3,7.3874]
[1745871352619,1.6603,1788.4,1788.3,6.4307]
[1745871353519,1.6603,1788.4,1788.3,7.5488]
[1745871353817,1.11797,1788.5,1788.3,7.5488]
[1745871354115,1.11797,1788.5,1788.4,1.6538]
[1745871354313,6.00536,1788.7,1788.4,1.6538]
[1745871354618,1.11791,1788.6,1788.5,1.11794]
[1745871354813,1.11791,1788.6,1788.5,1.99044]
[1745871355112,6.00537,1788.7,1788.5,4.6745]
[1745871355313,2.78591,1788.6,1788.5,4.6745]
[1745871356010,2.78591,1788.6,1788.5,6.3283]
[1745871356211,2.78591,1788.6,1788.5,7.44627]
[1745871356813,1.668,1788.6,1788.5,7.44627]
[1745871358517,4.8875,1788.7,1788.5,6.3283]
[1745871358726,4.02,1788.7,1788.6,2.85481]
[1745871362010,9.0918,1789.3,1788.6,6.7369]
[1745871362211,4.954,1789.3,1789.2,1.11753]
[1745871362509,6.07147,1789.3,1789.2,1.11753]
[1745871362713,4.954,1789.3,1789.2,1.11753]
[1745871363023,1.7462,1789.3,1789.2,1.11753]
[1745871363224,1.7462,1789.3,1789.2,4.91953]
[1745871364123,1.7462,1789.3,1789.2,6.51933]
[1745871366225,1.7462,1789.3,1789.2,2.71733]
[1745871366621,1.7462,1789.3,1789.2,1.11753]
[1745871367024,9.954,1789.3,1789.0,3.802]
[1745871367337,9.954,1789.3,1788.7,1.11782]
[1745871367338,1.1178,1788.8,1788.7,1.11782]
[1745871367633,8.34554,1788.9,1788.8,1.11776]
[1745871368035,7.2278,1788.9,1788.8,1.11776]
[1745871368837,7.2278,1788.9,1788.7,1.11781]
[1745871369424,7.2278,1788.9,1788.6,2.5548]
[1745871370035,5.13775,1788.9,1788.6,1.11786]
[1745871370236,4.02,1788.9,1788.7,1.11783]
[1745871371039,5.13773,1788.9,1788.6,2.74877]
[1745871371239,5.13773,1788.9,1788.7,1.11784]
[1745871371439,5.13773,1788.9,1788.6,2.74876]
[1745871371641,8.34553,1788.9,1788.6,2.74876]
[1745871371940,8.34553,1788.9,1788.7,1.11784]
[1745871372141,1.11778,1788.8,1788.6,2.74879]
[1745871372740,8.34556,1788.9,1788.7,1.11784]
[1745871372934,1.11778,1788.8,1788.7,1.11784]
[1745871373641,1.11778,1788.8,1788.6,2.74876]
[1745871374543,7.2278,1788.9,1788.6,1.6309]
[1745871374842,1.11785,1788.7,1788.6,1.6309]
[1745871376144,1.11785,1788.7,1788.6,2.74881]
[1745871376640,1.11785,1788.7,1788.6,1.6309]
[1745871377443,1.11785,1788.7,1788.6,2.74881]
[1745871380142,4.02,1788.9,1788.6,1.6309]
[1745871380353,4.02,1788.9,1788.8,1.11778]
[1745871380846,4.02,1788.9,1788.8,1.99298]
[1745871381146,4.02,1788.9,1788.8,5.79498]
[1745871381348,5.13458,1789.2,1789.1,1.1176]
[1745871381745,4.017,1789.2,1789.1,1.1176]
[1745871382847,4.017,1789.2,1789.1,2.777]
[1745871383146,5.13453,1789.2,1789.1,2.777]
[1745871383740,4.017,1789.2,1789.1,2.777]
[1745871384149,5.13453,1789.2,1789.1,2.777]
[1745871384950,4.017,1789.2,1789.1,2.777]
[1745871386047,1.711,1789.4,1789.3,1.11747]
[1745871386251,4.017,1789.5,1789.4,1.11741]
[1745871386749,5.1342,1789.8,1789.7,1.11722]
[1745871386942,7.644,1789.8,1789.7,1.11722]
[1745871387339,1.6016,1789.8,1789.7,1.11722]
[1745871387542,7.2248,1789.9,1789.8,1.11716]
[1745871387737,8.8264,1789.9,1789.8,1.11716]
[1745871388348,8.8264,1789.9,1789.8,2.79566]
[1745871388650,7.2248,1789.9,1789.8,2.79566]
[1745871388851,6.5268,1790.1,1790.0,1.11703]
[1745871389348,6.5268,1790.1,1790.0,5.40943]
[1745871389552,5.6186,1790.1,1790.0,5.40943]
[1745871389744,3.2078,1790.2,1790.1,1.11697]
[1745871389950,3.2078,1790.2,1790.1,2.77227]
[1745871391047,3.2078,1790.2,1790.1,4.70757]
[1745871392951,3.2078,1790.2,1790.1,3.73227]
[1745871393149,3.2078,1790.2,1790.1,2.6153]
[1745871393353,1.11697,1790.1,1790.0,4.2924]
[1745871393556,7.71237,1790.1,1790.0,4.2924]
[1745871393746,7.80914051,1790.1,1790.0,4.2924]
[1745871393946,7.80913938,1790.1,1790.0,4.2924]
[1745871394149,7.80913938,1790.1,1790.0,0.4904]
[1745871395653,8.74423938,1790.1,1790.0,0.4904]
[1745871397156,8.74426483,1790.1,1790.0,0.4904]
[1745871398558,1.1171,1789.9,1789.8,1.5852]
[1745871399150,2.757,1789.9,1789.8,1.5852]
[1745871399354,1.11722,1789.7,1789.6,6.18436]
[1745871399854,1.6399,1789.8,1789.6,5.0671]
[1745871400057,1.11722,1789.7,1789.6,6.18432]
[1745871400356,2.75711,1789.8,1789.7,1.11722]
[1745871400957,2.75711,1789.8,1789.7,2.78762]
[1745871401658,2.75711,1789.8,1789.7,3.74372]
[1745871401955,2.75711,1789.8,1789.7,2.6265]
[1745871402157,2.75711,1789.8,1789.7,6.4285]
[1745871403460,2.75711,1789.8,1789.7,4.7581]
[1745871404255,6.76811,1789.8,1789.7,0.9561]
[1745871405160,9.97591,1789.8,1789.7,0.9561]
[1745871410056,8.33601,1789.8,1789.7,0.9561]
[1745871410260,8.33601,1789.8,1789.7,4.61962]
[1745871410762,8.33601,1789.8,1789.7,3.5024]
[1745871416163,8.33601,1789.8,1789.7,7.3044]
[1745871417175,4.011,1789.8,1789.7,4.61962]
[1745871417366,5.12816,1789.8,1789.7,4.61962]
[1745871418173,5.12816,1789.8,1789.7,8.42162]
[1745871419774,4.011,1789.8,1789.7,8.42162]
[1745871420166,1.11664,1790.7,1790.5,1.11669]
[1745871420374,14.67099822,1791.1,1790.9,1.11642]
[1745871420559,14.67099822,1791.1,1790.7,3.2078]
[1745871420759,1.11647,1790.9,1790.8,42.4065]
[1745871420964,1.11647,1790.9,1790.8,1.6065]
[1745871421165,5.6269,1791.0,1790.6,0.9148]
[1745871421368,2.73247,1790.8,1790.5,3.2078]
[1745871421571,2.73247,1790.8,1790.6,3.66222]
[1745871421871,2.73247,1790.8,1790.7,2.7231]
[1745871422074,1.11654,1790.8,1790.7,1.6065]
[1745871422369,5.12752,1790.9,1790.7,1.6065]
[1745871422764,5.12752,1790.9,1790.8,0.951]
[1745871424964,4.011,1790.9,1790.8,0.951]
[1745871426868,5.12747,1790.9,1790.8,0.951]
[1745871427577,5.12747,1790.9,1790.8,2.6304]
[1745871428375,1.11659,1790.8,1790.6,0.9391]
[1745871428569,1.1166,1790.7,1790.6,0.9391]
[1745871428771,1.1166,1790.7,1790.5,3.802]
[1745871428963,2.87176,1790.6,1790.5,3.802]
[1745871429168,1.9369,1790.8,1790.4,1.6794]
[1745871429375,1.11667,1790.6,1790.4,1.6794]
[1745871430078,1.11672,1790.5,1790.4,1.6794]
[1745871430370,1.11672,1790.5,1790.4,5.4814]
[1745871431176,1.11672,1790.5,1790.4,1.6794]
[1745871431369,2.82252,1790.5,1790.4,1.6794]
[1745871431571,2.82252,1790.5,1790.3,3.2078]
[1745871431572,1.11678,1790.4,1790.3,3.2078]
[1745871431770,1.11685,1790.3,1790.2,1.9737]
[1745871432170,2.82265,1790.3,1790.2,1.9737]
[1745871432976,2.82265,1790.3,1790.2,3.6384]
[1745871434876,3.2078,1790.7,1790.2,3.6384]
[1745871435081,5.00079773,1791.1,1790.7,1.11655]
[1745871435378,2.85741,1790.9,1790.8,1.6647]
[1745871435579,2.85741,1790.9,1790.8,2.6618]
[1745871436176,2.85741,1790.9,1790.8,6.4638]
[1745871436372,2.90976,1791.0,1790.9,1.11647]
[1745871436580,2.90976,1791.0,1790.9,1.741]
[1745871436881,1.95396,1791.0,1790.9,1.741]
[1745871437078,1.95396,1791.0,1790.9,5.543]
[1745871438674,3.58046,1791.0,1790.9,5.543]
[1745871438875,2.464,1791.0,1790.9,5.543]
[1745871439278,2.464,1791.0,1790.9,1.741]
[1745871439483,2.464,1791.0,1790.9,2.85747]
[1745871440182,2.464,1791.0,1790.9,6.65947]
[1745871441381,2.464,1791.0,1790.9,2.85747]
[1745871442784,0.8375,1791.0,1790.9,2.85747]
[1745871443177,0.8375,1791.0,1790.9,6.65947]
[1745871443686,2.5526,1791.0,1790.9,6.65947]
[1745871443986,0.8375,1791.0,1790.9,6.65947]
[1745871447083,0.8375,1791.0,1790.9,9.86727]
[1745871452998,0.9558,1791.1,1791.0,1.11641]
[1745871453186,0.9558,1791.1,1791.0,7.46901]
[1745871453386,5.5903,1791.2,1791.1,1.11635]
[1745871453687,4.006,1791.2,1791.1,2.73065]
[1745871456788,5.6133,1791.2,1791.1,2.73065]
[1745871461490,6.72959,1791.2,1791.1,2.73065]
[1745871461697,5.6133,1791.2,1791.1,2.73065]
[1745871463694,6.72959,1791.2,1791.1,2.73065]
[1745871464197,7.68189,1791.2,1791.1,1.11635]
[1745871464595,1.11641,1791.0,1790.9,4.32421]
[1745871464894,2.7257,1791.1,1790.9,3.2078]
[1745871465095,2.1318,1791.1,1791.0,1.11641]
[1745871467298,1.0154,1791.1,1791.0,1.11641]
[1745871467698,4.9583,1791.2,1791.1,1.11635]
[1745871468703,6.07459,1791.2,1791.1,1.11635]
[1745871469602,6.07459,1791.2,1790.9,7.72915]
[1745871469904,6.07459,1791.2,1791.1,1.11635]
[1745871470401,4.9583,1791.2,1790.9,7.72915]
[1745871470596,1.11636,1791.1,1791.0,1.11635]
[1745871471303,6.07464,1791.2,1791.1,1.11635]
[1745871473003,1.11635,1791.1,1791.0,1.11636]
[1745871480813,1.11635,1791.1,1790.7,3.2078]
[1745871480814,5.0,1791.1,1790.7,3.2078]
[1745871481005,1.11685,1790.3,1790.2,3.5584]
[1745871481199,2.79166,1790.6,1790.2,3.5584]
[1745871481200,1.11684,1790.4,1790.2,3.5584]
[1745871481510,0.8378,1790.3,1790.2,4.67531]
[1745871481710,0.8378,1790.3,1790.2,3.03351]
[1745871481906,0.8378,1790.3,1790.2,0.976]
[1745871482211,0.8378,1790.3,1790.2,5.89491]
[1745871483810,1.95465,1790.3,1790.2,4.778]
[1745871484011,1.95465,1790.3,1790.2,5.89491]
[1745871484614,0.8378,1790.3,1790.2,5.89491]
[1745871489110,1.95465,1790.3,1790.2,5.89491]
[1745871490013,0.8378,1790.3,1790.2,5.89491]
[1745871492606,1.95465,1790.3,1790.2,5.89491]
[1745871492807,1.95465,1790.3,1790.2,4.778]
[1745871493114,3.65425,1790.3,1790.2,0.976]
[1745871493410,3.65425,1790.3,1790.2,2.09291]
[1745871493911,4.19162259,1790.3,1790.2,2.09291]
[1745871495413,3.65425,1790.3,1790.2,2.09291]
[1745871496315,2.5374,1790.3,1790.2,2.09291]
[1745871496815,3.65425,1790.3,1790.2,2.09291]
[1745871499117,3.65425,1790.3,1790.2,0.976]
[1745871503018,1.11694,1790.2,1790.0,6.94098]
[1745871503311,1.11694,1790.2,1790.1,1.11692]
[1745871503512,1.11694,1790.2,1790.1,2.86172]
[1745871504017,1.95474,1790.2,1790.1,2.86172]
[1745871510619,1.95474,1790.2,1790.1,1.11692]
[1745871510913,1.95474,1790.2,1789.0,10.65049512]
[1745871510914,1.11728,1789.6,1789.0,10.65049512]
[1745871511114,1.11778,1788.8,1788.7,16.03976937]
[1745871511310,1.11778,1788.8,1788.6,18.43412357]
[1745871511311,1.11785,1788.7,1788.6,11.25874757]
[1745871511507,1.11797,1788.5,1788.4,9.7376853]
[1745871511714,8.32377,1788.5,1788.4,9.7376853]
[1745871511913,7.2058,1788.5,1788.4,13.8860853]
[1745871513111,7.2058,1788.5,1788.4,17.6880853]
[1745871513516,3.66289655,1788.5,1788.4,17.6880853]
[1745871514221,3.66289655,1788.5,1788.4,7.9504]
[1745871518716,0.45509655,1788.5,1788.4,9.06843]
[1745871518912,0.45509655,1788.5,1788.4,7.9504]
[1745871519119,0.45509655,1788.5,1788.4,9.06843]
[1745871525227,7.2088,1788.9,1788.8,1.11778]
[1745871525629,4.62547246,1788.9,1788.8,1.11778]
[1745871526131,4.62547246,1788.9,1788.8,4.91978]
[1745871526729,4.62547246,1788.9,1788.8,3.802]
[1745871527031,1.1181,1788.3,1788.2,1.11811]
[1745871527627,1.9568,1788.3,1788.2,1.11811]
[1745871527827,1.29977246,1788.3,1788.2,1.11811]
[1745871528132,1.29977246,1788.3,1788.2,4.92011]
[1745871532126,2.41787246,1788.3,1788.2,3.802]
[1745871532328,1.29977246,1788.3,1788.2,4.92016]
[1745871532627,2.41787246,1788.3,1788.2,4.92016]
[1745871533739,1.29977246,1788.3,1788.2,4.92016]
[1745871534125,2.41787246,1788.3,1788.2,4.92016]
[1745871538844,2.41787246,1788.3,1788.2,3.802]
[1745871543845,2.41787246,1788.3,1788.2,4.92016]
[1745871544147,1.29977246,1788.3,1788.2,1.11816]
[1745871544334,1.29977246,1788.3,1788.2,5.26656]
[1745871544741,1.29977246,1788.3,1788.2,10.26656]
[1745871545145,1.29977246,1788.3,1788.2,5.26656]
[1745871545348,1.29977246,1788.3,1788.2,9.06856]
[1745871548354,1.29977246,1788.3,1788.2,12.69066]
[1745871550255,1.29977246,1788.3,1788.2,15.89846]
[1745871550458,1.29977246,1788.3,1788.2,12.69066]
[1745871550751,1.29977246,1788.3,1788.2,15.89846]
[1745871553351,2.25657246,1788.3,1788.2,15.89846]
[1745871558968,2.25657246,1788.3,1788.2,10.81126]
[1745871559171,2.25657246,1788.3,1788.2,7.60346]
[1745871559564,3.96997246,1788.3,1788.2,7.60346]
[1745871559967,3.13127246,1788.3,1788.2,7.60346]
[1745871560274,1.41787246,1788.3,1788.2,7.60346]
[1745871560772,2.25657246,1788.3,1788.2,7.60346]
[1745871561074,2.25657246,1788.3,1788.2,11.75186]
[1745871563576,0.79205246,1788.3,1788.2,12.75256]
[1745871565678,4.44491937,1788.3,1788.2,12.75256]
[1745871566070,3.31151937,1788.3,1788.2,12.75256]
[1745871566270,2.17811937,1788.3,1788.2,15.96036]
[1745871567773,9.37e-06,1788.3,1788.2,15.96036]
[1745871574981,4.78330974,1788.4,1788.3,1.1181]
[1745871575177,3.55231974,1788.4,1788.3,6.6248]
[1745871575379,2.37331974,1788.4,1788.3,10.7732]
[1745871575580,13.32898653,1788.6,1788.5,1.11797]
[1745871575581,7.74319653,1788.6,1788.5,1.11797]
[1745871575782,6.48374653,1788.6,1788.5,1.11797]
[1745871575982,6.48374653,1788.6,1788.5,5.26637]
[1745871576183,3.71472653,1788.6,1788.5,11.84837]
[1745871576484,2.82252905,1788.6,1788.5,11.84837]
[1745871576680,1.46223905,1788.6,1788.5,11.84837]
[1745871577186,9.05e-06,1788.6,1788.5,11.84837]
[1745871577985,2.6341,1788.8,1788.7,1.11785]
[1745871579282,2.6341,1788.8,1788.7,4.91985]
[1745871580179,11.95972,1788.8,1788.4,5.59004]
[1745871580385,3.2078,1788.6,1788.5,1.11797]
[1745871580785,4.1779,1788.6,1788.5,1.11797]
[1745871581185,4.1779,1788.6,1788.5,4.91997]
[1745871582387,0.9701,1788.6,1788.5,4.91997]
[1745871582587,0.9701,1788.6,1788.5,6.54187]
[1745871583489,1.9102,1788.6,1788.5,6.54187]
[1745871585986,0.9401,1788.6,1788.5,6.54187]
[1745871586186,0.9401,1788.6,1788.5,10.69027]
[1745871586385,0.9401,1788.6,1788.5,11.63497]
[1745871590484,1.6428,1788.7,1788.6,1.11791]
[1745871590690,1.6428,1788.7,1788.6,3.78501]
[1745871590887,1.6428,1788.7,1788.6,7.93341]
[1745871594995,1.6428,1788.7,1788.6,3.78501]
[1745871595395,0.9402,1788.8,1788.7,1.11785]
[1745871595593,2.5943,1788.8,1788.7,2.84355]
[1745871596091,2.5943,1788.8,1788.7,4.91985]
[1745871600497,2.5943,1788.8,1788.7,6.67945]
[1745871600892,2.5943,1788.8,1788.7,4.91985]
[1745871607005,2.5943,1788.8,1788.7,9.06825]
[1745871607207,9.96535307,1788.8,1788.7,10.04745]
[1745871607503,9.96535307,1788.8,1788.7,11.00065]
[1745871607805,8.31125307,1788.8,1788.7,11.00065]
[1745871609600,0.55260663,1788.8,1788.7,11.00065]
[1745871609807,8.01960653,1788.9,1788.8,1.11778]
[1745871610100,8.01960653,1788.9,1788.8,4.91978]
[1745871610298,8.01960653,1788.9,1788.8,51.49698]
[1745871610806,2.6631,1789.2,1789.1,1.1176]
[1745871611909,10.8709,1789.2,1789.0,3.802]
[1745871612096,1.6846,1789.1,1789.0,1.11766]
[1745871616409,1.6846,1789.1,1789.0,2.79666]
[1745871617206,1.6846,1789.1,1789.0,6.59866]
[1745871623812,4.1863,1789.2,1789.1,1.1176]
[1745871624012,4.1863,1789.2,1789.1,3.8238]
[1745871625807,3.2078,1789.2,1789.1,4.7501]
[1745871626309,3.2078,1789.2,1789.1,8.8985]
[1745871627814,4.9613,1789.2,1789.1,8.8985]
[1745871630719,3.2078,1789.2,1789.1,8.8985]
[1745871634415,7.8931176,1789.4,1789.3,1.11747]
[1745871634617,6.4629576,1789.4,1789.3,4.32527]
[1745871634818,2.5399576,1789.4,1789.3,13.47367]
[1745871635015,7.6e-06,1789.4,1789.3,15.16757]
[1745871635211,7.6e-06,1789.4,1789.3,18.96957]
[1745871635411,7.6e-06,1789.4,1789.3,19.92127]
[1745871638021,7.6e-06,1789.4,1789.3,25.76927]
[1745871639232,7.6e-06,1789.4,1789.3,23.80657]
[1745871639530,7.6e-06,1789.4,1789.3,16.60977]
[1745871639732,1.729,1789.4,1789.3,16.60977]
[1745871640129,0.9019,1789.5,1789.4,1.11741]
[1745871640527,0.9019,1789.5,1789.4,2.87501]
[1745871641129,0.9019,1789.5,1789.4,6.67701]
[1745871642126,0.9019,1789.5,1789.4,7.60941]
[1745871642327,0.9019,1789.5,1789.4,6.67701]
[1745871645535,0.9019,1789.5,1789.4,7.67251]
[1745871648538,2.5431,1789.5,1789.4,7.67251]
[1745871650939,3.66045,1789.5,1789.4,4.91941]
[1745871651143,4.58785,1789.5,1789.4,1.11741]
[1745871658642,3.66045,1789.5,1789.4,2.08911]
[1745871659041,3.66045,1789.5,1789.4,3.71601]
[1745871661442,3.66045,1789.5,1789.4,2.08911]
[1745871662244,2.5431,1789.5,1789.4,2.08911]
[1745871662446,1.1173,1789.6,1789.5,1.11735]
[1745871662746,1.1173,1789.6,1789.5,2.75445]
[1745871662937,1.1173,1789.6,1789.5,3.67665]
[1745871663137,14.30235357,1789.7,1789.6,1.11728]
[1745871666349,14.30235357,1789.7,1789.6,2.86968]
[1745871666839,14.30235357,1789.7,1789.6,1.11728]
[1745871667749,11.09455357,1789.7,1789.6,1.11728]
[1745871667945,14.30235357,1789.7,1789.6,1.11728]
[1745871668749,11.09455357,1789.7,1789.6,1.11728]
[1745871668950,14.30235357,1789.7,1789.6,1.11728]
[1745871669744,7.35319357,1789.7,1789.6,6.96508]
[1745871669951,7.35319357,1789.7,1789.6,10.17288]
[1745871670843,11.67811357,1789.9,1789.8,1.11716]
[1745871671042,13.40351357,1789.9,1789.8,1.11716]
[1745871671247,1.11716,1789.8,1789.7,3.74499]
[1745871671555,3.78546,1789.8,1789.7,6.7762]
[1745871671951,3.78546,1789.8,1789.7,7.89342]
[1745871672153,2.6683,1789.8,1789.7,7.89342]
[1745871672551,3.78546,1789.8,1789.7,7.89342]
[1745871673053,2.6683,1789.8,1789.7,7.89342]
[1745871674550,3.78546,1789.8,1789.7,7.89342]
[1745871675453,2.06006,1789.8,1789.7,7.89342]
[1745871675855,3.79156,1789.8,1789.7,7.89342]
[1745871676053,11.14475357,1789.8,1789.7,7.89342]
[1745871676450,11.14475357,1789.8,1789.7,6.7762]
[1745871676849,10.02759357,1789.8,1789.7,7.89342]
[1745871678056,8.29609357,1789.8,1789.7,7.89342]
[1745871679058,7.35319357,1789.8,1789.7,7.89342]
[1745871679255,7.35319357,1789.8,1789.7,11.69542]
[1745871682661,12.4034882,1789.9,1789.8,1.11716]
[1745871682662,10.56099357,1789.9,1789.8,1.11716]
[1745871682864,10.56099357,1789.9,1789.8,3.80326]
[1745871683059,10.56099357,1789.9,1789.8,7.95166]
[1745871683363,10.56099357,1789.9,1789.8,11.75366]
[1745871685763,3.2078,1789.9,1789.8,11.75366]
[1745871686258,13.07159357,1790.0,1789.9,1.1171]
[1745871686463,13.07159357,1790.0,1789.9,2.7882]
[1745871687361,9.86379357,1790.0,1789.9,2.7882]
[1745871687561,8.27259357,1790.0,1789.9,2.7882]
[1745871688263,8.27259357,1790.0,1789.9,6.5902]
[1745871689064,10.01869357,1790.0,1789.9,6.5902]
[1745871689365,10.01869357,1790.0,1789.9,2.7882]
[1745871689862,7.35319357,1790.1,1789.9,5.8195]
[1745871690163,7.35319357,1790.1,1790.0,3.71183]
[1745871690363,7.35319357,1790.1,1790.0,45.41913]
[1745871690567,7.35319357,1790.1,1790.0,53.54553]
[1745871690763,7.35319357,1790.1,1790.0,58.54553]
[1745871691167,7.35319357,1790.1,1790.0,57.34753]
[1745871691369,7.35319357,1790.1,1790.0,62.34753]
[1745871693075,5.90969357,1790.1,1790.0,62.34753]
[1745871693272,8.74746357,1790.6,1790.5,1.11672]
[1745871693467,5.75096357,1790.6,1790.5,1.11672]
[1745871693668,5.75096357,1790.6,1790.5,5.26512]
[1745871693871,4.76946357,1790.6,1790.5,5.26512]
[1745871694065,4.76946357,1790.6,1790.5,6.95152]
[1745871694373,4.76946357,1790.6,1790.5,10.75352]
[1745871698376,2.7282,1790.9,1790.8,1.11654]
[1745871698562,3.2078,1791.0,1790.9,1.11647]
[1745871699158,3.2078,1791.0,1790.9,4.91847]
[1745871701070,4.1451,1791.0,1790.9,4.91847]
[1745871701258,4.1451,1791.0,1790.9,1.11647]
[1745871701970,3.2078,1791.0,1790.9,1.11647]
[1745871702175,3.2078,1791.0,1790.9,4.91847]
[1745871705572,4.32421,1791.0,1790.9,3.802]
[1745871706173,1.11647,1790.9,1790.8,1.11648]
[1745871706375,4.78887,1790.9,1790.8,1.11648]
[1745871707377,3.6724,1790.9,1790.8,1.11648]
[1745871707578,4.78887,1790.9,1790.8,1.11648]
[1745871709683,3.6724,1790.9,1790.8,1.11648]
[1745871710481,2.6907,1790.9,1790.8,1.11648]
[1745871717090,2.6907,1790.9,1790.8,4.91848]
[1745871718192,2.6907,1790.9,1790.8,1.11648]
[1745871720093,2.6907,1790.9,1790.8,6.23708]
[1745871720487,3.2078,1791.0,1790.9,1.11647]
[1745871720797,3.2078,1791.0,1790.9,2.70847]
[1745871720984,3.2078,1791.0,1790.9,6.85687]
[1745871721184,4.1863,1791.0,1790.9,6.85687]
[1745871721895,5.8341,1791.0,1790.9,6.85687]
[1745871723194,2.6263,1791.0,1790.9,6.85687]
[1745871723696,4.2075,1791.2,1791.1,1.11635]
[1745871723885,6.9187,1791.2,1791.1,1.11635]
[1745871726299,8.03499,1791.2,1791.1,1.11635]
[1745871726498,6.9187,1791.2,1791.1,1.11635]
[1745871726800,8.03499,1791.2,1791.1,1.11635]
[1745871727202,6.9187,1791.2,1791.1,1.11635]
[1745871727896,6.9187,1791.2,1791.1,1.1163462]
[1745871728096,8.03499,1791.2,1791.1,1.1163462]
[1745871728595,2.79088,1791.1,1790.8,2.5599]
[1745871728792,1.6706,1791.0,1790.8,2.5599]
[1745871728993,1.6706,1791.0,1790.9,1.11647]
[1745871731502,2.78701,1791.0,1790.9,1.11647]
[1745871736310,2.78701,1791.0,1790.9,2.86097]
[1745871739418,3.80901,1791.0,1790.9,2.86097]
[1745871744619,13.0046982,1791.0,1790.9,2.86097]
[1745871746620,11.8882882,1791.0,1790.9,2.86097]
[1745871746919,9.1956882,1791.0,1790.9,7.00937]
[1745871747718,9.1956882,1791.0,1790.9,5.26487]
[1745871747917,9.1956882,1791.0,1790.9,6.91107]
[1745871752628,10.2206882,1791.0,1790.9,2.76267]
[1745871752828,11.8691882,1791.0,1790.9,2.76267]
[1745871753227,11.8691882,1791.0,1790.8,0.9722]
[1745871753527,1.6485,1790.9,1790.8,7.98134]
[1745871754830,2.76497,1790.9,1790.8,7.98134]
[1745871755225,5.97277,1790.9,1790.8,7.98134]
[1745871757132,4.8563,1790.9,1790.8,7.98134]
[1745871757726,13.54331809,1790.9,1790.8,7.98134]
[1745871758032,12.42684809,1790.9,1790.8,7.98134]
[1745871758932,13.54331809,1790.9,1790.8,7.98134]
[1745871759233,12.42684809,1790.9,1790.8,7.98134]
[1745871759724,13.54331809,1790.9,1790.8,7.98134]
[1745871760033,4.32427,1790.9,1790.8,7.98134]
[1745871760330,3.2078,1790.9,1790.8,7.98134]
[1745871761325,4.32427,1790.9,1790.8,7.98134]
[1745871761634,3.2078,1790.9,1790.8,7.98134]
[1745871762730,9.21904809,1791.0,1790.9,1.11647]
[1745871762929,9.21904809,1791.0,1790.9,3.89087]
[1745871763238,9.21904809,1791.0,1790.9,8.03927]
[1745871767540,9.12246494,1791.1,1791.0,1.11641]
[1745871767737,10.23881494,1791.1,1791.0,2.78781]
[1745871767937,9.12246494,1791.1,1791.0,6.93621]
[1745871768639,10.23881494,1791.1,1791.0,6.93621]
[1745871768832,9.12246494,1791.1,1791.0,6.93621]
[1745871772040,7.38026494,1791.1,1791.0,6.93621]
[1745871772541,9.21904809,1791.1,1791.0,6.93621]
[1745871773333,10.87514809,1791.1,1791.0,6.93621]
[1745871782047,9.03097712,1791.1,1791.0,6.93621]
[1745871788447,18.25002521,1791.1,1791.0,6.93621]
[1745871788648,10.87514809,1791.1,1791.0,6.93621]
[1745871790455,9.21904809,1791.1,1791.0,6.93621]
[1745871791654,10.33539809,1791.1,1791.0,1.11641]
[1745871791848,1.11667,1790.6,1790.5,1.11667]
[1745871792148,3.2078,1790.7,1790.6,1.11666]
[1745871792457,4.3244,1790.7,1790.6,1.11666]
[1745871792956,4.9661,1790.7,1790.6,1.11666]
[1745871794243,6.0827,1790.7,1790.6,1.11666]
[1745871794654,4.9661,1790.7,1790.6,1.11666]
[1745871795343,3.2078,1790.7,1790.6,5.26506]
[1745871795551,2.724,1790.9,1790.8,1.11654]
[1745871796055,2.724,1790.9,1790.8,5.26494]
[1745871796260,2.724,1790.9,1790.8,6.94734]
[1745871798165,7.04827,1790.9,1790.8,1.11654]
[1745871798663,14.42146268,1790.9,1790.8,1.11654]
[1745871800361,13.30499268,1790.9,1790.8,1.11654]
[1745871800765,14.42146268,1790.9,1790.8,1.11654]
[1745871800954,13.30499268,1790.9,1790.8,1.11654]
[1745871801556,14.42146268,1790.9,1790.8,1.11654]
[1745871801760,16.26476085,1790.9,1790.8,1.11654]
[1745871802362,15.14829085,1790.9,1790.8,1.11654]
[1745871803655,16.26476085,1790.9,1790.8,1.11654]
[1745871803855,15.14829085,1790.9,1790.8,1.11654]
[1745871804259,15.14829085,1790.9,1790.8,2.75894]
[1745871804764,11.94049085,1790.9,1790.8,2.75894]
[1745871805865,9.21649085,1790.9,1790.8,6.90734]
[1745871806168,9.21649085,1790.9,1790.8,11.73734]
[1745871807967,7.37947543,1791.0,1790.9,1.11647]
[1745871808164,7.37947543,1791.0,1790.9,2.70727]
[1745871808362,7.37947543,1791.0,1790.9,6.85567]
[1745871809059,9.07227543,1791.0,1790.9,6.85567]
[1745871811866,7.37947543,1791.0,1790.9,6.85567]
[1745871814258,7.37947543,1791.0,1790.9,10.65767]
[1745871814459,7.37947543,1791.1,1791.0,1.11641]
[1745871814661,7.37947543,1791.1,1791.0,4.96501]
[1745871815760,7.37947543,1791.1,1791.0,9.11341]
[1745871818073,10.07077543,1791.2,1791.1,1.11635]
[1745871820466,10.07077543,1791.2,1791.1,2.85105]
[1745871820673,11.90779085,1791.2,1791.1,2.85105]